Workbook

Sheet Исходные данные
A1: Наименование заемщика | B1: Отрасль | C1: Подразделение | D1: вид связи с банком | E1: Наличие графика | F1: вид валюты кредита | G1: Счет | H1: № дог. | I1: Лимит задолж. | J1: Свободный лимит | K1: Задолж. на текущ.дату, в рублях и в рубл. эквиваленте | L1: % | M1: Дата выдачи | N1: Дата погашения
A2: Строй УК Финанс ООО | B2: строительство | E2: без гр. | G2: 45206 | H2: =[1]Портфель!E51 -> 1 | I2: 0 | J2: 0 | K2: 4004000 | L2: 21 | M2: 2011-01-01 | N2: 2011-02-02
A3: Строй УК Финанс ООО | B3: оптовая и розничная торговля | G3: 45206 | H3: =[1]Портфель!E20 -> 012/11/ЮЛ/6 | I3: 18000000 | J3: =I3-K3 -> 1 | K3: 17999999 | L3: 21 | M3: 2011-01-02 | N3: 2011-02-03
A4: Строй УК Финанс ООО(ауац) | E4: без гр. | G4: 45206 | H4: 75 | I4: 300000 | J4: =I4-K4 -> 287459 | K4: 12541 | L4: 21 | M4: 2011-01-03 | N4: 2011-02-04
A5: Конт-Ойл ООО(65,0 млн.) | B5: оптовая торговля топливом | E5: без гр. | G5: 45206 | H5: =[1]Портфель!E36 -> 116 | I5: 65000000 | J5: =I5-K5 -> 64750000 | K5: 250000 | L5: 21 | M5: 2011-01-04 | N5: 2011-02-05
A6: Конт-Ойл ООО(65,0 млн.) | B6: оптовая и розничная торговля | C6: ф.кубань | E6: без гр. | G6: 45206 | H6: =[1]Портфель!E22 -> 031/10-03 | I6: 3000000 | J6: =I6-K6 -> 2723458.76 | K6: =[1]Портфель!H22 -> 276541.24 | L6: 21 | M6: 2011-01-05 | N6: 2011-02-06
A7: Васина Н.Ю. | B7: оптовая торговля топливом | C7: ф.кубань | E7: без гр. | G7: 45206 | H7: =[1]Портфель!E21 -> 028/09-03 | I7: 4000000 | J7: =I7-K7 -> 3848439 | K7: 151561 | L7: 21 | M7: 2011-01-06 | N7: 2011-02-07
A8: Н.Ю. Васина | E8: без гр. | G8: 45206 | H8: 54*20 | I8: 0 | J8: 0 | K8: 35000000 | L8: 21 | M8: 2011-01-07 | N8: 2011-02-08
A9: Астапенко Н.А. | E9: без гр. | G9: 45206 | H9: 58*20 | I9: 0 | J9: 0 | K9: 15454542 | L9: 21 | M9: 2011-01-08 | N9: 2011-02-09
A10: Центр ООО (50,0 млн. 18.04.11) | B10: оптовая торговля топливом | E10: без гр. | G10: 45206 | H10: =[1]Портфель!E46 -> 50 | I10: 50000000 | J10: =I10-K10 -> 49878785 | K10: 121215 | L10: 21 | M10: 2011-01-09 | N10: 2011-02-10
A11: Центр ООО | B11: оптовая и розничная торговля | E11: без гр. | G11: 45206 | H11: =[1]Портфель!E34 -> 127 | K11: 15151513 | L11: 21 | M11: 2011-01-10 | N11: 2011-02-11
A12: Геотон ООО | B12: оптовая торговля топливом | G12: 45206 | H12: =[1]Портфель!E30 -> 165 | K12: 1513151 | L12: 21 | M12: 2011-01-11 | N12: 2011-02-12
A13: Геотон ООО | B13: оптовая торговля топливом | C13: л | G13: 45206 | H13: =[1]Портфель!E19 -> 007/11/юл | I13: 50000000 | J13: =I13-K13 -> 49845549 | K13: 154451 | L13: 21 | M13: 2011-01-12 | N13: 2011-02-13
A14: Сорокин И.С. | E14: без гр. | G14: 45206 | H14: =[1]Портфель!E264 -> 122*20 | K14: 1413465413 | L14: 21 | M14: 2011-01-13 | N14: 2011-02-14
A15: Тепломаш ООО | B15: оптовая торговля топливом | E15: без гр. | G15: 45206 | H15: =[1]Портфель!E79 -> 88 | K15: 12132131 | L15: 21 | M15: 2011-01-14 | N15: 2011-02-15
A16: Вектор ООО(40,0 млн.) | B16: оптовая торговля топливом | E16: без гр. | G16: 45206 | H16: =[1]Портфель!E38 -> 114 | I16: 40000000 | J16: =I16-K16 -> 39987869 | K16: 12131 | L16: 21 | M16: 2011-01-15 | N16: 2011-02-16
A17: Вектор ООО(40,0 млн.) | B17: прочие отрасли | D17: СК | E17: без гр. | G17: 45206 | H17: 38 | I17: 70000000 | J17: 56456465 | K17: 544564651 | L17: 21 | M17: 2011-01-16 | N17: 2011-02-17
A18: Мелада ООО (4 млн.) | B18: строительство | E18: без гр. | G18: 45206 | H18: 82 | I18: 4000000 | J18: =I18-K18-K19 -> -8857761 | K18: 12313213 | L18: 21 | M18: 2011-01-17 | N18: 2011-02-18
A19: Мелада ООО (4 млн.)2 тр. | B19: строительство | E19: без гр. | G19: 45206 | H19: 82 | K19: 544548 | L19: 21 | M19: 2011-01-18 | N19: 2011-02-19
A20: Мелада ООО (4 млн.)2 тр. | B20: строительство | E20: без гр. | G20: 45206 | H20: 30 | I20: 380000 | J20: =I20-K20 -> 331539 | K20: 48461 | L20: 21 | M20: 2011-01-19 | N20: 2011-02-20
A21: Сучков А.Н. | E21: без гр. | G21: 45206 | H21: 76 | I21: 40000 | J21: =I21-K21 -> 36790 | K21: 3210 | L21: 21 | M21: 2011-01-20 | N21: 2011-02-21
A22: Фахретдинов И.М. | E22: без гр. | G22: 45206 | H22: 28*20 | I22: 0 | J22: 0 | K22: 5555 | L22: 21 | M22: 2011-01-21 | N22: 2011-02-22
A23: Инфраструктура ООО( 10,0 млн.) | B23: строительство | E23: без гр. | G23: 45206 | H23: =[1]Портфель!E35 -> 115 | I23: 10000000 | K23: 1451 | L23: 21 | M23: 2011-01-22 | N23: 2011-02-23
A24: Арсланова З.Ф. | E24: без гр. | G24: 45206 | H24: 36*20 | I24: 0 | J24: 0 | K24: 13131 | L24: 21 | M24: 2011-01-23 | N24: 2011-02-24
A25: Доброневский Р.Л. | E25: без гр. | G25: 45206 | H25: 22*20 | I25: 0 | J25: 0 | K25: 15131 | L25: 21 | M25: 2011-01-24 | N25: 2011-02-25
A26: Фролова Л.Г. | E26: без гр. | G26: 45206 | H26: 27*20 | I26: 0 | J26: 0 | K26: 212313 | L26: 21 | M26: 2011-01-25 | N26: 2011-02-26
A27: Проектно-технол.институт НХП ООО (1,5 млн. н/в) | B27: оптовая торговля топливом | E27: без гр. | G27: 45206 | H27: =[1]Портфель!E33 -> 117 | I27: 1500000 | J27: =I27-K27 -> 1378769 | K27: 121231 | L27: 21 | M27: 2011-01-26 | N27: 2011-02-27
A28: Зайнитдинов А.С. | E28: без гр. | G28: 45206 | H28: 59*20 | I28: 0 | J28: 0 | K28: 121321 | L28: 21 | M28: 2011-01-27 | N28: 2011-02-28
A29: Крымгужина Ю. | E29: без гр. | G29: 45206 | H29: 78 | I29: 15000 | J29: =I29-K29 -> 13800 | K29: 1200 | L29: 21 | M29: 2011-01-28 | N29: 2011-03-01
A30: Зайнитдинов А.С. | C30: ф.Кубань | G30: 45206 | H30: =[1]Портфель!E23 -> 046-03 | I30: 1000000 | J30: =I30-K30 -> 998849 | K30: 1151 | L30: 21 | M30: 2011-01-29 | N30: 2011-03-02
A31: Зайнитдинов А.С. | B31: оптовая торговля топливом | E31: без гр. | G31: 45206 | H31: =[1]Портфель!E26 -> 160 | K31: 15415 | L31: 21 | M31: 2011-01-30 | N31: 2011-03-03
A32: Давыдов Е.С. | C32: ф.Кубань | E32: гр. | G32: 45206 | H32: ФЛ-025 | I32: 0 | J32: 0 | K32: 151311 | L32: 21 | M32: 2011-01-31 | N32: 2011-03-04
A33: Итого ( до 30 дней) | G33: 45206 | I33: =SUM(I2:I32) -> 317235000 | J33: =SUM(J2:J32) -> 261680011.8 | K33: =SUM(K2:K32) -> 2073832482
A34: в т.ч. В валюте | G34: 45206
A35: в т.ч. В рублях | G35: 45206 | K35: =K33-K34 -> 2073832482

Sheet отсортировано
A2: Конт-Ойл ООО(65,0 млн.) | B2: оптовая торговля топливом | E2: без гр. | G2: 45206 | H2: 116 | I2: 65000000 | J2: 64750000 | K2: 250000 | L2: 21 | M2: 2011-01-04 | N2: 2011-02-05
A3: Конт-Ойл ООО(65,0 млн.) | B3: оптовая и розничная торговля | C3: ф.кубань | E3: без гр. | G3: 45206 | H3: 031/10-03 | I3: 3000000 | J3: 2723458.76 | K3: 276541.24 | L3: 21 | M3: 2011-01-05 | N3: 2011-02-06
A4: Н.Ю. Васина | E4: без гр. | G4: 45206 | H4: 54*20 | I4: 0 | J4: 0 | K4: 35000000 | L4: 21 | M4: 2011-01-07 | N4: 2011-02-08
A5: Центр ООО (50,0 млн. 18.04.11) | B5: оптовая торговля топливом | E5: без гр. | G5: 45206 | H5: 50 | I5: 50000000 | J5: 49878785 | K5: 121215 | L5: 21 | M5: 2011-01-09 | N5: 2011-02-10
A6: Геотон ООО | B6: оптовая торговля топливом | G6: 45206 | H6: 165 | K6: 1513151 | L6: 21 | M6: 2011-01-11 | N6: 2011-02-12
A7: Геотон ООО | B7: оптовая торговля топливом | C7: л | G7: 45206 | H7: 007/11/юл | I7: 50000000 | J7: 49845549 | K7: 154451 | L7: 21 | M7: 2011-01-12 | N7: 2011-02-13
A8: Сорокин И.С. | E8: без гр. | G8: 45206 | H8: 122*20 | K8: 1413465413 | L8: 21 | M8: 2011-01-13 | N8: 2011-02-14
A9: Вектор ООО(40,0 млн.) | B9: оптовая торговля топливом | E9: без гр. | G9: 45206 | H9: 114 | I9: 40000000 | J9: 39987869 | K9: 12131 | L9: 21 | M9: 2011-01-15 | N9: 2011-02-16
A10: Вектор ООО(40,0 млн.) | B10: прочие отрасли | D10: СК | E10: без гр. | G10: 45206 | H10: 38 | I10: 70000000 | J10: 56456465 | K10: 544564651 | L10: 21 | M10: 2011-01-16 | N10: 2011-02-17
A11: Итого ( до 30 дней) | G11: 45206 | I11: 317235000 | J11: 261680011.8 | K11: 2073832482
